Cogmind - Beta 10.1 @@@ ROGUE MODE // 2020.10.21 @ 22:35:31 Player: Cog Result: Destroyed by as-70509 with Assembled Heavy Rifle Performance ------------- Evolutions (0) 0 Regions Visited (2) 400 Robots Destroyed (7) 35 Value Destroyed (98) 98 Prototype IDs (0) 0 Alien Tech Used (0) 0 Bonus (0) 0 TOTAL SCORE: 533 Bonus ------- None Cogmind --------- Core Integrity 0/250 Matter 253/300 Energy 46/100 System Corruption 8% Temperature Cool (0) Movement Core (50) Location -10/Mines Parts ------- > --- POWER (1) -------- (None) > --- PROPULSION (2) --- Aluminum Leg > --- UTILITY (2) ------ (None) > --- WEAPON (2) ------- (None) > --- INVENTORY (4) ---- Ion Engine Light Treads Light Treads Large Storage Unit Peak State ------------ > --- POWER ------------ Light Ion Engine > --- PROPULSION ------- Wheel Compact Wheel > --- UTILITY ---------- Small Storage Unit Large Storage Unit > --- WEAPON ----------- Assault Rifle Light Assault Rifle > --- INVENTORY -------- Ion Engine Light Ion Engine Light Treads Light Treads Aluminum Leg Aluminum Leg Heat Sink Large Storage Unit Assault Rifle Grenade Launcher [Rating: 8] Favorites ----------- Power Light Ion Engine Engine Light Ion Engine Propulsion Compact Wheel Leg Aluminum Leg Wheel Compact Wheel Utility Small Storage Unit Storage Small Storage Unit Weapon Assault Rifle Ballistic Gun Assault Rifle Launcher Grenade Launcher Build | -11 -10 -10 ------- Run | Scr Mat Min Slots Evolved . | . . . Power . | . . . Propulsion . | . . . Utility . | . . . Weapon . | . . . Parts Attached 8 | . 3 5 Power 1 | . . 1 Engine 1 | . . 1 Core . | . . . Reactor . | . . . Propulsion 4 | . 2 2 Treads . | . . . Leg 2 | . . 2 Wheel 2 | . 2 . Hover . | . . . Flight . | . . . Utility 1 | . 1 . Device . | . . . Storage 1 | . 1 . Processor . | . . . Hackware . | . . . Protection . | . . . Artifact . | . . . Weapon 2 | . . 2 Energy Gun . | . . . Energy Cannon . | . . . Ballistic Gun 1 | . . 1 Ballistic Cannon . | . . . Launcher 1 | . . 1 Special Weapon . | . . . Impact Weapon . | . . . Slashing Weapon . | . . . Piercing Weapon . | . . . Special Melee Weapon . | . . . Unidentified Prototypes . | . . . Parts Lost 7 | . . 7 Power 2 | . . 2 Propulsion 2 | . . 2 Utility . | . . . Weapon 3 | . . 3 Highest Loss Streak 7 | . . 7 Average Slot Usage (%) 95 | . 99 88 Engine 13 | . 14 11 Leg 1 | . 1 1 Wheel 26 | . 26 24 Storage 26 | . 27 25 Ballistic Gun 26 | . 28 23 Naked Turns . | . . . Heaviest Build 26 | 10 26 26 Greatest Support 26 | 20 26 26 Greatest Overweight (x) . | . . . Average Overweight (x) . | . . . Largest Inventory Capacity 12 | . 12 12 Average Capacity 11 | . 11 11 Most Carried 10 | . 8 10 Average Carried 7 | . 7 8 Final Capacity 12 | 6 12 4 Final Carried 8 | 6 8 4 Class Distribution -------------------- 100% | Mutant Dominant Class ---------------- Mutant | -10/Materials Mutant | -10/Mines Resources | -11 -10 -10 ----------- Run | Scr Mat Min Matter Collected 294 | 200 80 14 Remotely . | . . . Salvage Created 131 | . 109 22 Parts 8 | . 8 . Haulers Intercepted . | . . . Recyclers Shooed . | . . . Parts Field Recycled . | . . . Retrieved Matter . | . . . Parts Self-Destructed . | . . . Prevented . | . . . Kills | -11 -10 -10 ------- Run | Scr Mat Min Combat Hostiles Destroyed 7 | . 5 2 Guns 5 | . 5 . AOE 2 | . . 2 Classes Destroyed 3 | . 2 1 Swarmer 3 | . 3 . Grunt 2 | . 2 . Assembled 2 | . . 2 Best Kill Streak 3 | . 3 2 Combat Bots Only 3 | . 3 2 Max Kills in Single Turn 2 | . 1 2 Gunslinging . | . . . Exploded 2 | . . 2 Melee . | . . . Uniques/NPCs Destroyed . | . . . Combat | -11 -10 -10 -------- Run | Scr Mat Min Damage Taken 834 | . 205 629 Core 255 | . 101 154 Absorbed by Shields . | . . . Core Remaining (%) 100 | 100 . . Volleys Fired 23 | . 18 5 Largest 2 | . 2 2 Hottest 50 | . 40 50 Shots Fired 43 | . 36 7 Gun 42 | . 36 6 Cannon . | . . . Launcher 1 | . . 1 Special . | . . . Kinetic 42 | . 36 6 Thermal . | . . . Explosive 1 | . . 1 Electromagnetic . | . . . Robot Hit Streak 6 | . 6 2 Robot Miss Streak 3 | . 3 1 Penetration Max . | . . . Secondary Targets 1 | . 1 . Max Gunslinging Chain 1 | . 1 . Shots Hit Robots 24 | . 20 4 Core Hits 14 | . 7 7 Critical Hits 1 | . 1 . Critical Kills . | . . . Critical Parts Destroyed 1 | . 1 . Melee Attacks . | . . . Impact . | . . . Slashing . | . . . Piercing . | . . . Sneak Attacks . | . . . Combat Hostiles . | . . . Follow-up Attacks . | . . . Damage Inflicted 399 | . 199 200 Guns 251 | . 199 52 Cannons . | . . . Explosions 148 | . . 148 Melee . | . . . Ramming . | . . . Kinetic 251 | . 199 52 Thermal . | . . . Explosive 148 | . . 148 Electromagnetic . | . . . Impact . | . . . Slashing . | . . . Piercing . | . . . Highest Corruption 8 | . . 8 Average Corruption 6 | . . 6 Corruption Purged . | . . . Effects 1 | . . 1 Energy Discharges 1 | . . 1 Overload Shots . | . . . Overflow Damage . | . . . Projectiles . | . . . Explosions . | . . . Melee . | . . . Knockbacks . | . . . Impact . | . . . Kinetic . | . . . Secondary . | . . . Self-Inflicted Damage . | . . . Shots . | . . . Rammed . | . . . Targets Rammed . | . . . Kicked . | . . . Crushed . | . . . Highest Temperature 10 | . 6 10 Average Temperature 6 | . 6 8 Received Heat Transfer 174 | . 54 120 Siege Activations . | . . . Robots Corrupted . | . . . Combat Hostiles . | . . . Parts Fried . | . . . Impact Corruptions . | . . . Robots Melted . | . . . Combat Hostiles . | . . . Parts Melted . | . . . Heat Transferred . | . . . Parts Sabotaged . | . . . Parts Stolen . | . . . Parts Stripped . | . . . Power Chain Reactions . | . . . Missiles Intercepted . | . . . Alert | -11 -10 -10 ------- Run | Scr Mat Min Peak Influence 123 | . 123 47 Initial 47 | . . 47 Average 43 | . 45 38 Maximum Alert Level . | . . . Low Security (%) 100 | . 100 100 Level 1 . | . . . Level 2 . | . . . Level 3 . | . . . Level 4 . | . . . Level 5 . | . . . High Security . | . . . Max Security . | . . . Squads Dispatched . | . . . Investigation . | . . . Extermination . | . . . Reinforcement . | . . . Assault . | . . . Garrison . | . . . Intercept . | . . . Construction Impeded . | . . . Haulers Reinforced . | . . . Stealth | -11 -10 -10 --------- Run | Scr Mat Min Distress Signals 1 | . 1 . Communications Jammed . | . . . Distress Signals . | . . . Times Spotted 16 | . 6 10 Peak Tracking Total 12 | . 4 12 Tactical Retreats 1 | . . 1 Traps | -11 -10 -10 ------- Run | Scr Mat Min Traps Triggered 1 | . 1 . Indirectly . | . . . Trap Hack Attempts . | . . . Triggered . | . . . Disarmed . | . . . Reprogrammed . | . . . Reused . | . . . Traps Extracted . | . . . Installed . | . . . Triggered . | . . . Machines | -11 -10 -10 ---------- Run | Scr Mat Min Machines Disabled . | . . . Max in Single Turn . | . . . Machines Sabotaged . | . . . Garrisons Compromised . | . . . Overloaded Fab Kills . | . . . Fab Network Shutdowns . | . . . Hacking | -11 -10 -10 --------- Run | Scr Mat Min Machines Accessed 3 | . 3 . Terminals 2 | . 2 . Fabricators . | . . . Repair Stations . | . . . Recycling Units 1 | . 1 . Scanalyzers . | . . . Garrison Access . | . . . Total Hacks 7 | . 7 . Successful 3 | . 3 . Failed 4 | . 4 . Catastrophic 1 | . 1 . Database Lockouts . | . . . Manual 5 | . 5 . Terminals 5 | . 5 . Fabricators . | . . . Repair Stations . | . . . Recycling Units 2 | . 2 . Scanalyzers . | . . . Garrison Access . | . . . Terminal Hacks 1 | . 1 . Branch Access Points 1 | . 1 . Fabricator Hacks . | . . . Repair Station Hacks . | . . . Recycling Unit Hacks 1 | . 1 . Report Inventory 1 | . 1 . Scanalyzer . | . . . Garrison Access Hacks . | . . . Unauthorized Hacks 1 | . 1 . Terminals 1 | . 1 . Botnet 1 | . 1 . Fabricators . | . . . Repair Stations . | . . . Recycling Units . | . . . Scanalyzers . | . . . Garrison Access . | . . . Data Cores Recovered . | . . . Used . | . . . Hacking Detections 3 | . 3 . Full Trace Events . | . . . Feedback Events . | . . . Feedback Blocked . | . . . Robot Schematics Acquired . | . . . Robots Built . | . . . Matter . | . . . Time . | . . . Total Robot Build Rating . | . . . Part Schematics Acquired . | . . . Parts Built . | . . . Matter . | . . . Time . | . . . Total Part Build Rating . | . . . Parts Repaired . | . . . Time . | . . . Parts Recycled . | . . . Recycled Matter . | . . . Retrieved Matter . | . . . Retrieved Components . | . . . Parts Scanalyzed . | . . . Part Schematics Acquired . | . . . Parts Damaged . | . . . Bothacking | -11 -10 -10 ------------ Run | Scr Mat Min Used RIF Installer . | . . . Robots Hacked . | . . . Non-combat . | . . . Combat . | . . . Robot Hacks Applied . | . . . Relay Couplers Released . | . . . Robots Rewired . | . . . Allies Hacked . | . . . Hacks Repelled . | . . . Allies | -11 -10 -10 -------- Run | Scr Mat Min Total Allies . | . . . Largest Group . | . . . Highest-Rated Group . | . . . Highest-Rated Ally . | . . . Total Orders . | . . . Ally Attacks . | . . . Total Damage . | . . . Kills . | . . . Allies Corrupted . | . . . Allies Melted . | . . . Intel | -11 -10 -10 ------- Run | Scr Mat Min Robot Analysis Total . | . . . Derelict Logs Recovered . | . . . Drone Launches . | . . . Drone Recoveries . | . . . Exploration | -11 -10 -10 ------------- Run | Scr Mat Min Turns Passed 350 | . 220 130 Spaces Moved 284 | 1 165 118 Core 7 | . . 7 Treads . | . . . Legs 14 | 1 10 3 Wheels 263 | . 155 108 Hover . | . . . Flight . | . . . Fastest Speed 50 | 120 90 50 Average Speed 90 | 120 91 88 Slowest Speed 120 | 120 120 120 Overloaded Moves . | . . . Propulsion Burnouts . | . . . Robots Hopped . | . . . Cave-ins Triggered . | . . . Exploration Rate (%) 23 | 2 37 31 Regions Visited 2 Branch Regions 1 Pre-discovered Areas . | . . . Known Exits Taken 1 | . 1 . Unknown Exits Taken 1 | 1 . . Scrap Searched 1 | . . 1 Spaces Dug . | . . . Terrain Destroyed 5 | . . 5 Melee . | . . . Projectile . | . . . AOE 5 | . . 5 Terrain Rammed . | . . . Walls Destroyed . | . . . Machines Disabled . | . . . Actions | -11 -10 -10 --------- Run | Scr Mat Min Total 337 | . 199 138 Wait 17 | . 12 5 Move 282 | . 164 118 Hop . | . . . Pick Up 4 | . 2 2 Fast Attach 1 | . 1 . Attach 5 | . . 5 Detach . | . . . Swap 2 | . 2 . Drop 3 | . . 3 Fire 23 | . 18 5 Melee . | . . . Ram . | . . . Kick . | . . . Crush . | . . . Escape Stasis . | . . . Rewire . | . . . Trap . | . . . Miscellaneous . | . . . Route ------- -11/Scrapyard -10/Materials -10/Mines History --------- Turn | Location | Event 1 | -11/Scrapyard | Discovered new exit (range 0) 1 | -11/Scrapyard | Entered Materials 59 | -10/Materials | Identified exit to Mines 221 | -10/Materials | Entered Mines 292 | -10/Mines | Assembled infested the area 303 | -10/Mines | Build established: Mutant 325 | -10/Mines | Core integrity fell below 50% 344 | -10/Mines | Core integrity fell below 20% 351 | -10/Mines | Destroyed by as-70509 with Assembled Heavy Rifle Last Messages --------------- 00292_ ALERT: Infestation in the mines, dispatching Demolisher response squad. 00320_ Assault Rifle destroyed. 00321_ as-73572 destroyed. 00321_ as-43707 destroyed. 00322_ as-00194 destroyed. 00323_ Grenade Launcher severed. 00325_ The unstable cave ceiling collapses. 00326_ Lgt. Ion Engine destroyed. 00326_ Lgt. Assault Rifle destroyed. 00336_ Wheel destroyed. 00337_ Lgt. Ion Engine destroyed. 00337_ System corrupted by crushing effect (+3). 00340_ Com. Wheel destroyed. 00340_ System corrupted by crushing effect (+5). 00341_ Assault Rifle destroyed. 00346_ System corrupted: Energy discharge (-20). 00346_ Dropped Lrg. Storage Unit. 00346_ Dropped Aluminum Leg. 00347_ Dropped Sml. Storage Unit. Map ----- +----------------------------------------------------+ | | | | | | | | | | | | | | | ??????????????????????????????????????????????? | | ???????????????????????????####???????????????? | | ????????????????????####### ##??????????????? | | ?????????????????#### #??????????????? | | ????????????????## #??????????????? | | ????????????????# #???????????????? | | ?????????????????# ####???????????????? | | ?????????????????# s ##??????????????????? | | ?????????????????## ##???????????????????? | | ??????????????????# ## #????????????????????? | | ?????????????????# #?# #????????????????????? | | ????????????????# ??# ###???######?????????? | | ???????????????# ???# #??## ##????????? | | ???????????????# ????# #??# ######???? | | ???????????????# ?????## #### ## ##??? | | ???????????????# ??????# ##?? | | ???????????????# ???????# ##? | | ??????????????? ????????# ####### #? | | ??????????????#?????????#@#?????# #? | | ????????????????????????# #????## #? | | ????????????????????????#a#???## #? | | ????????????????????????# ##??# ## #? | | ???????????????????????##a #### ##?# ##? | | ??????????????????????##a ## ##???###?? | | ?????????????????????##! a ##????????? | | ????????????????????## !a= ##????????? | | ????????????????????# ##???????? | | ????????????????????# #???????? | | ????????????????????## #???????? | | ?????????????????????## ### ##???????? | | ??????????????????????## #?## #????????? | | ???????????????????????## #??## ##????????? | | ????????????????????????##a #???# ##?????????? | | ?????????????????????????# #???# #??????????? | | ??????????????????????#### #???# #??????????? | | ?????????????????????## #???# #??????????? | | ????????????????????## #?### #??????????? | | ????????????????????# ] ##?# #??????????? | | ????????????????????# #??# ####??????????? | | ????????????????????# #??# #?????????????? | | ????????????????????## ##?# #?????????????? | | ?????????????????????## % ### #?????????????? | | ??????????????????????## ## ###??????####?? | +----------------------------------------------------+ Best States ------------- Heat Dissipation 25 Energy Generation 10 Energy Capacity 125 Matter Stores 300 Matter Capacity 300 Sight Range 16 Terrain Scan Density 10 Evasion (%) 50 Item Schematics ----------------- None Robot Schematics ------------------ None Fabricated ------------ Nothing Alien Tech Used ----------------- None Achievements -------------- None Challenges ------------ None Game ------ Seed MetafieldAntimissilePit Manual? 0 Play Time 00:14:38 Cumulative 69.0 hours Start 2020.10.20 @ 02:40:45 End 2020.10.21 @ 22:35:31 Sessions 2 Manual Loads 0 Difficulty Rogue Special Mode None Game No. 91 Rogue 91 Adventurer 0 Explorer 0 Win Type - Total 0 Types 0/0/0/0/0/0/0/0/0 Lore% 48 Gallery% 54 Achievement% 35 Wizard Run 0 Options --------- ASCII 0 Keyboard 0 Movement Mouse Keybinds 0 Fullscreen 1 Font 24/Smallcaps Map View 76x50 Tactical HUD 1 Map Filters NONE Filters NONE Steam 1 RUN: 174537a4-4205-4981-9826-87865dc28ab0